Workbook

Sheet Меню младшие 1-4 кл ОСЕНЬ
B12: Согласовано | I12: Разработано и утвеждено
B13: Руководитель общеобразовательного учреждения | I13: Директор ООО "АБК-Пэймент""
B15: ________________________ | I15: ________________Р.Р. Рахматуллин
B20: Двенадцатидневное меню
B21: Для организации бесплатного горячего питания (горячих завтраков) для обучающихся начальных классов
B22: общеобразовательных организаций Аксубаевского района Республики Татарстан
B55: ДВУХНЕДЕЛЬНОЕ МЕНЮ ДЛЯ ОБУЧАЮЩИХСЯ МБОУ "Новоаксубаевская НОШ" с 1 по 4 классы
A57: № рецептуры | B57: Наименование блюд | C57: Выход,г | D57: Белки, г | E57: Жиры, г | F57: Углеводы, г | G57: Калорийность, ккал | H57: Витамин B1, мг | I57: Витамин С, мг | J57: Витамин А, мг | K57: Витамин Е, мг | L57: Ca, мг | M57: P, мг | N57: Mg, мг | O57: Fe, мг
B58: 1-ая неделя
B59: 1 день
A60: № 59 Сбор.рец. На прод-ию для обуч. Во всех образ.учреж-Дели 2017 | B60: Салат из моркови с яблоками | C60: 60 | D60: 0.64 | E60: 0.10 | F60: 5.11 | G60: 23.94 | H60: 0.03 | I60: 2.63 | J60: 0.00 | K60: 0.21 | L60: 14.40 | M60: 26.72 | N60: 18.23 | O60: 0.64
A61: № 271 Сбор.рец. На прод-ию для обуч. Во всех образ.учреж-Дели 2017 | B61: Котлета домашняя из говядины | C61: 90 | D61: 8.15 | E61: 10.50 | F61: 8.10 | G61: 199.57 | H61: 0.14 | I61: 0.20 | J61: 2.74 | K61: 2.27 | L61: 13.48 | M61: 104.60 | N61: 16.08 | O61: 1.70
A62: № 203 Сбор.рец. На прод-ию для обуч. Во всех образ.учреж-Дели 2017 | B62: Макаронные изделия отварные с маслом сливочным | C62: 150/5 | D62: 5.12 | E62: 4.53 | F62: 31.99 | G62: 189.30 | H62: 0.06 | I62: 0.00 | J62: 20.00 | K62: 0.82 | L62: 12.39 | M62: 38.67 | N62: 8.62 | O62: 0.86
A63: №349 Сбор.рец. На прод-ию для обуч. Во всех образ.учреж-Дели 2017 | B63: Компот из сухофруктов (75С) | C63: 200 | D63: 0.66 | E63: 0.09 | F63: 22.03 | G63: 92.90 | H63: 0.02 | I63: 0.73 | J63: 0.00 | K63: 0.51 | L63: 32.48 | M63: 23.44 | N63: 17.46 | O63: 0.70
B64: Печенье | C64: 40 | D64: 3.70 | E64: 4.70 | F64: 2.85 | G64: 21.50 | H64: 0.03 | I64: 0.00 | J64: 4.00 | K64: 1.40 | L64: 11.60 | M64: 36.00 | N64: 8.00 | O64: 0.84
A65: Хим.состав и калорийность российских продуктов питания,табл 6, стр 144 , 2012 Дели + | B65: Хлеб ржаной | C65: 20 | D65: 1.32 | E65: 0.54 | F65: 17.82 | G65: 89.10 | H65: 0.08 | I65: 0.00 | J65: 0.00 | K65: 0.63 | L65: 13.05 | M65: 67.50 | N65: 21.15 | O65: 1.76 | P65: 0 | Q65: 0
B66: Итого: | C66: 565 | D66: =D60+D61+D62+D63+D65+D64 -> 19.59 | E66: =E60+E61+E62+E63+E65+E64 -> 20.46 | F66: =F60+F61+F62+F63+F65+F64 -> 87.90 | G66: 616.31 | H66: 0.35 | I66: 3.55 | J66: 26.74 | K66: 5.84 | L66: 97.40 | M66: 296.92 | N66: 89.54 | O66: 6.50 | P66: =P60+P61+P62+P63+P65+P64 -> 0.00 | Q66: =Q60+Q61+Q62+Q63+Q65+Q64 -> 0.00
B68: 2 день
A69: Хим.состав и калорийность российских продуктов питания табл 9 стр 186 , 2012 Дели + | B69: Плоды и ягоды свежие (апельсин) | C69: 100 | D69: 0.8 | E69: 0.20 | F69: 8.1 | G69: 43.0 | H69: 0.04 | I69: 60.00 | K69: 0.20 | L69: 34.00 | M69: 23.00 | N69: 13.00 | O69: 0.30
A70: № 15 Сбор.рец. На прод-ию для обуч. Во всех образ.учреж-Дели -2017 | B70: Сыр порционно | C70: 10 | D70: 2.63 | E70: 2.66 | F70: 0.00 | G70: 34.33 | H70: 0.00 | I70: 0.07 | J70: 21.00 | K70: 0.04 | L70: 100.00 | M70: 60.00 | N70: 5.50 | O70: 0.07
A71: № 260 Сбор.рец. На прод-ию для обуч. Во всех образ.учреж-Дели -2017 | B71: Гуляш из говядины | C71: 50/50 | D71: 10.45 | E71: 10.71 | F71: 22.89 | G71: 221.00 | H71: 0.03 | I71: 0.92 | K71: 2.61 | L71: 21.81 | M71: 154.15 | N71: 22.03 | O71: 3.06
A72: № 171 Сбор.рец. На прод-ию для обуч. Во всех образ.учреж-Дели 2017 | B72: Каша гречневая рассыпчатая с маслом сливочным | C72: 150/5 | D72: 4.61 | E72: 6.92 | F72: 27.79 | G72: 207.00 | H72: 0.21 | I72: 0.00 | J72: 20.00 | K72: 0.45 | L72: 25.19 | M72: 208.85 | N72: 140.52 | O72: 4.72
A73: № 377 Сбор.рец. На прод-ию для обуч. Во всех образ.учреж-Дели 2017 | B73: Чай с сахаром, с лимоном | C73: 185/10/5 | D73: 0.13 | E73: 0.02 | F73: 10.20 | G73: 42.00 | I73: 2.83 | K73: 0.01 | L73: 14.05 | M73: 4.40 | N73: 2.40 | O73: 0.34
A74: Хим.состав и калорийность российских продуктов питания табл 6 стр 134 , 2012 Дели + | B74: Хлеб пшеничный | C74: 25 | D74: 1.54 | E74: 0.20 | F74: 12.30 | G74: 58.75 | H74: 0.03 | I74: 0.00 | J74: 0.00 | K74: 0.28 | L74: 5.00 | M74: 16.25 | N74: 3.50 | O74: 0.28 | P74: 0 | Q74: 0
B75: Итого: | C75: 590 | D75: =D69+D70+D71+D72+D73+D74 -> 20.16 | E75: =E69+E70+E71+E72+E73+E74 -> 20.71 | F75: 81.28 | G75: 606.08 | H75: 0.31 | I75: 63.82 | J75: 41.00 | K75: 3.59 | L75: 200.05 | M75: 466.65 | N75: 186.95 | O75: 8.77 | P75: 25% | Q75: 25%
B78: 3 день
A79: № 52 Сбор.рец. На прод-ию для обуч. Во всех образ.учреж-Дели 2017 | B79: Салат из отварной свеклы | C79: 60 | D79: 0.84 | E79: 3.61 | F79: 4.96 | G79: 55.68 | H79: 0.01 | I79: 3.99 | J79: 0.00 | K79: 1.62 | L79: 21.28 | M79: 24.38 | N79: 12.42 | O79: 0.79
A80: ТТК | B80: Шницель куриный | C80: 90 | D80: 11.85 | E80: 10.96 | F80: 15.53 | G80: 198.00 | H80: 0.09 | I80: 0.79 | J80: 65.52 | K80: 2.68 | L80: 51.37 | M80: 71.01 | N80: 18.90 | O80: 1.55
A81: № 304 Сбор.рец. На прод-ию для обуч. Во всех образ.учреж-Дели 2017 | B81: Рис отварной рассыпчатый с маслом сливочным | C81: 150/5 | D81: 3.74 | E81: 4.15 | F81: 39.23 | G81: 209.00 | H81: 0.03 | I81: 0.00 | J81: 20.00 | K81: 0.33 | L81: 2.57 | M81: 62.45 | N81: 16.34 | O81: 0.54
A82: № 376 Сбор.рец. На прод-ию для обуч. Во всех образ.учреж-Дели 2017 | B82: Чай с сахаром | C82: 190/10 | D82: 0.07 | E82: 0.02 | F82: 10.00 | G82: 40.00 | I82: 0.03 | L82: 10.95 | M82: 2.80 | N82: 1.40 | O82: 0.26
A83: Хим.состав и калорийность российских продуктов питания табл 6 стр 134 , 2012 Дели + | B83: Хлеб пшеничный | C83: 20 | D83: 1.520 | E83: 0.160 | F83: 9.840 | G83: 47 | H83: 0.022 | I83: 0 | J83: 0 | K83: 0.220 | L83: 4.000 | M83: 13.000 | N83: 2.800 | O83: 0.220 | P83: 0 | Q83: 0
A84: Хим.состав и калорийность российских продуктов питания,табл 6, стр 144 , 2012 Дели + | B84: Хлеб ржаной | C84: 20 | D84: 1.32 | E84: 0.24 | F84: 7.92 | G84: 39.60 | H84: 0.03 | I84: 0.00 | J84: 0.00 | K84: 0.28 | L84: 5.80 | M84: 30.00 | N84: 9.40 | O84: 0.78
B85: Итого: | C85: 545 | D85: =D84+D83+D82+D81+D80+D79 -> 19.34 | E85: =E84+E83+E82+E81+E80+E79 -> 19.14 | F85: 87.47 | G85: 589.28 | H85: 0.18 | I85: 4.81 | J85: 85.52 | K85: 5.13 | L85: 95.97 | M85: 203.64 | N85: 61.25 | O85: 4.14 | P85: 0.00 | Q85: 0.00
B94: 4 день
A95: № 45 Сбор.рец. На прод-ию для обуч. Во всех образ.учреж-Дели -2017 | B95: Салат из свежей белокочанной капусты | C95: 60 | D95: 0.79 | E95: 1.95 | F95: 3.88 | G95: 36.24 | H95: 0.01 | I95: 10.26 | J95: 0.00 | K95: 5.03 | L95: 14.98 | M95: 16.98 | N95: 9.05 | O95: 0.28
A96: № 229 Сбор.рец. На прод-ию для обуч. Во всех образ.учреж-Дели 2017 | B96: Рыба тушенная с овощами в томате | C96: 50/50 | D96: 9.15 | E96: 5.62 | F96: 7.80 | G96: 105.00 | H96: 0.05 | I96: 3.73 | J96: 5.82 | K96: 2.52 | L96: 39.07 | M96: 162.19 | N96: 48.53 | O96: 0.85
A97: № 312 Сбор.рец. На прод-ию для обуч. Во всех образ.учреж-Дели -2017 | B97: Пюре картофельное с маслом сливочным | C97: 150/5 | D97: 3.10 | E97: 8.43 | F97: 20.51 | G97: 170.25 | H97: 0.14 | I97: 18.16 | J97: 20.00 | K97: 0.23 | L97: 38.18 | M97: 88.10 | N97: 27.75 | O97: 1.02
A98: № 342 Сбор.рец. На прод-ию для обуч. Во всех образ.учреж-Дели 2017 | B98: Компот из свежих яблок (75 С) | C98: 200 | D98: 0.16 | E98: 0.16 | F98: 13.91 | G98: 58.74 | H98: 0.01 | I98: 0.90 | J98: 0.00 | K98: 0.08 | L98: 14.18 | M98: 4.40 | N98: 5.14 | O98: 0.95
A99: Хим.состав и калорийность российских продуктов питания табл 6 стр 134 , 2012 Дели + | B99: Хлеб пшеничный | C99: 20 | D99: 1.520 | E99: 0.160 | F99: 9.840 | G99: 47 | H99: 0.022 | I99: 0 | J99: 0 | K99: 0.220 | L99: 4.000 | M99: 13.000 | N99: 2.800 | O99: 0.220
A100: Хим.состав и калорийность российских продуктов питания,табл 6, стр 144 , 2012 Дели + | B100: Хлеб ржаной | C100: 20 | D100: 1.32 | E100: 0.24 | F100: 7.92 | G100: 39.60 | H100: 0.03 | I100: 0.00 | J100: 0.00 | K100: 0.28 | L100: 5.80 | M100: 30.00 | N100: 9.40 | O100: 0.78
B101: Итого: | C101: 555 | D101: =D95+D96+D97+D98+D99+D100 -> 16.04 | E101: =E95+E96+E97+E98+E99+E100 -> 16.56 | F101: 63.86 | G101: 456.83 | H101: 0.27 | I101: 33.05 | J101: 25.82 | K101: 8.37 | L101: 116.21 | M101: 314.67 | N101: 102.67 | O101: 4.10 | P101: 0.00 | Q101: 0.00
B104: 5 день
A105: № 62 Сбор.рец. На прод-ию для обуч. Во всех образ.учреж-Дели -2017 | B105: Салат из моркови с сахаром | C105: 60 | D105: 0.74 | E105: 0.06 | F105: 6.58 | G105: 49.02 | H105: 0.03 | I105: 2.02 | J105: 0.00 | K105: 8.04 | L105: 15.46 | M105: 31.66 | N105: 21.63 | O105: 0.40
A106: № 271 Сбор.рец. На прод-ию для обуч. Во всех образ.учреж-Дели 2017 | B106: Котлеты говяжьи | C106: 90 | D106: 10.18 | E106: 13.75 | F106: 11.77 | G106: 183.40 | H106: 0.05 | I106: 0.00 | J106: 0.00 | K106: 3.11 | L106: 9.38 | M106: 150.08 | N106: 27.54 | O106: 2.41
A107: № 199 Сбор.рец. На прод-ию для обуч. Во всех образ.учреж-Дели 2017 | B107: Гороховое пюре с маслом сливочным | C107: 150/5 | D107: 5.62 | E107: 5.04 | F107: 34.99 | G107: 208.50 | H107: 0.50 | I107: 0.00 | J107: 20.00 | K107: 0.50 | L107: 94.11 | M107: 212.33 | N107: 61.70 | O107: 4.69
A108: № 377 Сбор.рец. На прод-ию для обуч. Во всех образ.учреж-Дели 2017 | B108: Чай с мармеладом | C108: 185/15 | D108: 0.09 | E108: 0.02 | F108: 11.94 | G108: 48.15 | H108: 0.00 | I108: 0.03 | J108: 0.00 | K108: 0.00 | L108: 11.25 | M108: 2.95 | N108: 1.70 | O108: 0.30
A109: Хим.состав и калорийность российских продуктов питания табл 6 стр 134 , 2012 Дели + | B109: Хлеб пшеничный | C109: 20 | D109: 1.520 | E109: 0.160 | F109: 9.840 | G109: 47 | H109: 0.022 | I109: 0 | J109: 0 | K109: 0.220 | L109: 4.000 | M109: 13.000 | N109: 2.800 | O109: 0.220
A110: Хим.состав и калорийность российских продуктов питания,табл 6, стр 144 , 2012 Дели + | B110: Хлеб ржаной | C110: 20 | D110: 1.320 | E110: 0.24 | F110: 7.920 | G110: 40 | H110: 0.034 | I110: 0 | J110: 0 | K110: 0.280 | L110: 5.800 | M110: 30.000 | N110: 9.400 | O110: 0.780
B111: Итого: | C111: 545 | D111: =D105+D106+D107+D108+D109+D110 -> 19.46 | E111: =E105+E106+E107+E108+E109+E110 -> 19.27 | F111: 83.04 | G111: 575.67 | H111: 0.64 | I111: 2.05 | J111: 20.00 | K111: 12.15 | L111: 139.99 | M111: 440.02 | N111: 124.76 | O111: 8.80 | P111: 0.00 | Q111: 0.00
B115: 6 день
A116: Хим.состав и калорийность российских продуктов питания табл 9 стр 184 , 2012 Дели + | B116: Плоды и ягоды свежие (яблоки) | C116: 100 | D116: 0.40 | E116: 0.40 | F116: 9.80 | G116: 47.00 | H116: 0.03 | I116: 10.00 | K116: 0.20 | L116: 16.00 | M116: 11.00 | N116: 9.00 | O116: 2.20
A117: № 15 Сбор.рец. На прод-ию для обуч. Во всех образ.учреж-Дели 2017 | B117: Сыр порционно | C117: 10 | D117: 2.03 | E117: 2.63 | F117: 0.00 | G117: 34.33 | H117: 0.00 | I117: 0.07 | J117: 21.00 | K117: 0.04 | L117: 100.00 | M117: 60.00 | N117: 5.50 | O117: 0.07
A118: № 390,391,392 Сбор.рец. На прод-ию для обуч. Во всех образ.учреж-Дели 2017 | B118: Пельмени мясные отварные с маслом сливочным | C118: 170/5 | D118: 11.54 | E118: 14.700 | F118: 40.822 | G118: 346 | H118: 0.145 | I118: 0.333 | J118: 38.547 | K118: 0.007264957265 | L118: 21.021 | M118: 109.791 | N118: 31.778 | O118: 0.831
A119: № 379 Сбор.рец. На прод-ию для обуч. Во всех образ.учреж-Дели 2017 | B119: Кофейный напиток | C119: 200 | D119: 2.87 | E119: 2.18 | F119: 15.90 | G119: 80.60 | H119: 0.04 | I119: 1.30 | J119: 20.00 | K119: 0.00 | L119: 125.78 | M119: 90.00 | N119: 14.00 | O119: 0.13
A120: Хим.состав и калорийность российских продуктов питания табл 6 стр 134 , 2012 Дели + | B120: Хлеб пшеничный | C120: 40 | D120: 3.04 | E120: 0.32 | F120: 19.68 | G120: 94.00 | H120: 0.04 | I120: 0.00 | J120: 0.00 | K120: 0.44 | L120: 8.00 | M120: 26.00 | N120: 5.60 | O120: 0.44
B121: Итого: | C121: 525 | D121: =D120+D119+D118+D117+D116 -> 19.88 | E121: 20.23 | F121: 86.20 | G121: 602.18 | H121: 0.27 | I121: 11.70 | J121: 79.55 | K121: 0.69 | L121: 270.80 | M121: 296.79 | N121: 65.88 | O121: 3.67 | P121: 0.00 | Q121: 0.00
A135: № рецептуры | B135: Наименование блюд | C135: Выход,г | D135: Белки, г | E135: Жиры, г | F135: Углеводы, г | G135: Калорийность, ккал | H135: Витамин B1, мг | I135: Витамин С, мг | J135: Витамин А, мг | K135: Витамин Е, мг | L135: Ca, мг | M135: P, мг | N135: Mg, мг | O135: Fe, мг
B136: 2-ая неделя
B137: 1 день
A138: №293 Сбор.рец. На прод-ию для обуч. Во всех образ.учреж-Дели 2017 | B138: Птица запеченная | C138: 90 | D138: 9.820 | E138: 15.964 | F138: 0.000 | G138: 202 | H138: 0.072 | I138: 2.430 | J138: 96.48 | K138: 1.908 | L138: 48.690 | M138: 171.522 | N138: 22.428 | O138: 1.980
A139: № 203 Сбор.рец. На прод-ию для обуч. Во всех образ.учреж-Дели 2017 | B139: Макаронные изделия отварные с маслом сливочным | C139: 150/3 | D139: 5.10 | E139: 2.85 | F139: 39.56 | G139: 186.10 | H139: 0.06 | I139: 0.00 | J139: 12.00 | K139: 0.80 | L139: 11.91 | M139: 38.07 | N139: 8.62 | O139: 0.86
A140: № 376 Сбор.рец. На прод-ию для обуч. Во всех образ.учреж-Дели 2017 | B140: Чай с сахаром,с яблоком | C140: 180/10/10 | D140: 0.110 | E140: 0.060 | F140: 12.690 | G140: 45 | H140: 0.003 | I140: 1.030 | K140: 0.020 | L140: 12.700 | M140: 3.900 | N140: 2.300 | O140: 0.500
A141: Хим.состав и калорийность российских продуктов питания табл 6 стр 134 , 2012 Дели + | B141: Хлеб пшеничный | C141: 40 | D141: 3.040 | E141: 0.320 | F141: 19.680 | G141: 94 | H141: 0.044 | I141: 0 | J141: 0 | K141: 0.440 | L141: 8.000 | M141: 26.000 | N141: 5.600 | O141: 0.440 | P141: 0 | Q141: 0
A142: Хим.состав и калорийность российских продуктов питания,табл 6, стр 144 , 2012 Дели + | B142: Хлеб ржаной | C142: 20 | D142: 1.320 | E142: 0.240 | F142: 7.920 | G142: 40 | H142: 0.034 | I142: 0 | J142: 0 | K142: 0.280 | L142: 5.800 | M142: 30.000 | N142: 9.400 | O142: 0.780
B143: Итого: | C143: 503 | D143: =SUM(D138:D142) -> 19.39 | E143: =SUM(E138:E142) -> 19.43 | F143: 79.85 | G143: 566.75 | H143: 0.21 | I143: 3.46 | J143: 108.48 | K143: 3.45 | L143: 87.10 | M143: 269.49 | N143: 48.35 | O143: 4.56 | P143: 25% | Q143: 25%
B145: 2 день
A146: №3 Сбор.рец. На прод-ию для обуч. Во всех образ.учреж-Дели 2017 | B146: Бутерброд с маслом сливочным и сыром | C146: 60 | D146: 7.03 | E146: 7.94 | F146: 19.75 | G146: 178.50 | H146: 0.05 | I146: 0.11 | J146: 51.50 | K146: 0.56 | L146: 159.20 | M146: 117.50 | N146: 13.85 | O146: 0.56
A147: №143,241 Сбор.рец. На прод-ию для обуч. Во всех образ.учреж-Дели 2017 | B147: Овощи тушеные с мясом | C147: 50/150 | D147: 9.10 | E147: 10.28 | F147: 22.34 | G147: 211.35 | H147: 0.11 | I147: 18.78 | J147: 39.00 | K147: 0.00 | L147: 68.94 | M147: 172.79 | N147: 38.24 | O147: 2.68
A148: ТТК | B148: Чай "Витаминный" | C148: 185/10/5 | D148: 0.24 | E148: 0.09 | F148: 12.42 | G148: 54.20 | H148: 0.00 | I148: 50.03 | J148: 0.00 | K148: 0.19 | L148: 13.95 | M148: 3.65 | N148: 2.25 | O148: 0.41
A149: Хим.состав и калорийность российских продуктов питания табл 6 стр 134 , 2012 Дели + | B149: Хлеб пшеничный | C149: 20 | D149: 1.52 | E149: 0.16 | F149: 9.84 | G149: 47.00 | H149: 0.02 | I149: 0.00 | J149: 0.00 | K149: 0.22 | L149: 4.00 | M149: 13.00 | N149: 2.80 | O149: 0.22
A150: Хим.состав и калорийность российских продуктов питания,табл 6, стр 144 , 2012 Дели + | B150: Хлеб ржаной | C150: 40 | D150: 2.64 | E150: 0.48 | F150: 15.84 | G150: 79.20 | H150: 0.07 | I150: 0.00 | J150: 0.00 | K150: 0.56 | L150: 11.60 | M150: 60.00 | N150: 18.80 | O150: 1.56 | P150: 0 | Q150: 0%
B151: Итого: | C151: 460 | D151: =D146+D147+D150+D148 -> 19.01 | E151: =E146+E147+E148+E149+E150 -> 18.95 | F151: 80.19 | G151: 570.25 | H151: 0.26 | I151: 68.92 | J151: 90.50 | K151: 1.53 | L151: 257.69 | M151: 366.94 | N151: 75.94 | O151: 5.43 | P151: 25% | Q151: 25%
B153: 3 день
A154: № 52 Сбор.рец. На прод-ию для обуч. Во всех образ.учреж-Дели -2017 | B154: Салат из свеклы отварной | C154: 60 | D154: 0.84 | E154: 3.61 | F154: 4.96 | G154: 55.68 | H154: 0.01 | I154: 3.99 | J154: 0.00 | K154: 1.62 | L154: 21.28 | M154: 24.38 | N154: 12.42 | O154: 0.79
A155: № 294 Сбор.рец. На прод-ию для обуч. Во всех образ.учреж-Дели -2017 | B155: Котлеты из мяса кур | C155: 90 | D155: 11.85 | E155: 8.06 | F155: 18.53 | G155: 198.00 | H155: 0.18 | I155: 0.81 | J155: 12.42 | K155: 61.47 | L155: 51.64 | M155: 69.30 | N155: 19.98 | O155: 3.24
A156: № 312 Сбор.рец. На прод-ию для обуч. Во всех образ.учреж-Дели -2017 | B156: Пюре картофельное с маслом сливочным | C156: 150/5 | D156: 3.13 | E156: 8.43 | F156: 20.51 | G156: 170.25 | H156: 0.14 | I156: 18.16 | J156: 20.00 | K156: 0.23 | L156: 38.18 | M156: 88.10 | N156: 27.75 | O156: 1.02
A157: № 376 Сбор.рец. На прод-ию для обуч. Во всех образ.учреж-Дели 2017 | B157: Чай с сахаром | C157: 190/10 | D157: 0.07 | E157: 0.02 | F157: 10.00 | G157: 40.00 | I157: 0.03 | L157: 10.95 | M157: 2.80 | N157: 1.40 | O157: 0.26
A158: Хим.состав и калорийность российских продуктов питания табл 6 стр 134 , 2012 Дели + | B158: Хлеб пшеничный | C158: 35 | D158: 2.660 | E158: 0.280 | F158: 17.220 | G158: 82 | H158: 0.039 | I158: 0 | J158: 0 | K158: 0.385 | L158: 7.000 | M158: 22.750 | N158: 4.900 | O158: 0.385
A159: Хим.состав и калорийность российских продуктов питания,табл 6, стр 144 , 2012 Дели + | B159: Хлеб ржаной | C159: 25 | D159: 1.650 | E159: 0.300 | F159: 9.900 | G159: 50 | H159: 0.043 | I159: 0 | J159: 0 | K159: 0.350 | L159: 7.250 | M159: 37.500 | N159: 11.750 | O159: 0.975
B160: Итого: | C160: 565 | D160: =D159+D158+D157+D156+D155+D154 -> 20.20 | E160: =E159+E158+E157+E156+E155+E154 -> 20.70 | F160: 81.11 | G160: 595.68 | H160: 0.41 | I160: 22.99 | J160: 32.42 | K160: 64.06 | L160: 136.30 | M160: 244.82 | N160: 78.20 | O160: 6.67 | P160: 25% | Q160: 25%
B175: 4 день
A176: Хим.состав и калорийность российских продуктов питания табл 9 стр 186 , 2012 Дели + | B176: Плоды и ягоды свежие (апельсин) | C176: 100 | D176: 0.80 | E176: 0.20 | F176: 8.10 | G176: 43.00 | H176: 0.04 | I176: 60.00 | K176: 0.20 | L176: 34.00 | M176: 23.00 | N176: 13.00 | O176: 0.30
A177: №279,331 Сбор.рец. На прод-ию для питания детей в дошк образоват учрежд-Дели 2017 | B177: Тефтели мясные в сметанно-томатном соусе | C177: 60/40 | D177: 7.284 | E177: 11.790 | F177: 8.738 | G177: 133.99 | H177: 0.048 | I177: 0.276 | J177: 29.620 | K177: 0.421 | L177: 20.726 | M177: 80.202 | N177: 15.521 | O177: 0.640
A178: № 203 Сбор.рец. На прод-ию для обуч. Во всех образ.учреж-Дели 2017 | B178: Макаронные изделия отварные с маслом сливочным | C178: 150/3 | D178: 5.10 | E178: 2.85 | F178: 31.96 | G178: 176.10 | H178: 0.06 | I178: 0.00 | J178: 12.00 | K178: 0.80 | L178: 11.91 | M178: 38.07 | N178: 8.62 | O178: 0.86
A179: ТТК | B179: Напиток из свежих фруктов (75С) | C179: 200 | D179: 0.34 | E179: 0.17 | F179: 11.48 | G179: 63.60 | H179: 0.02 | I179: 3.17 | J179: 0.00 | K179: 0.13 | L179: 16.67 | M179: 7.05 | N179: 7.78 | O179: 0.88
A180: Хим.состав и калорийность российских продуктов питания табл 6 стр 134 , 2012 Дели + | B180: Хлеб пшеничный | C180: 20 | D180: 1.520 | E180: 0.160 | F180: 9.840 | G180: 47 | H180: 0.022 | I180: 0 | J180: 0 | K180: 0.220 | L180: 4.000 | M180: 13.000 | N180: 2.800 | O180: 0.220
B181: Итого: | C181: 573 | D181: =D180+D179+D178+D177+D176 -> 15.04 | E181: =E180+E179+E178+E177+E176 -> 15.17 | F181: 70.12 | G181: 463.69 | H181: 0.19 | I181: 63.45 | J181: 41.62 | K181: 1.77 | L181: 87.31 | M181: 161.32 | N181: 47.72 | O181: 2.90 | P181: =SUM(P176:P180) -> 0.00 | Q181: =SUM(Q176:Q180) -> 0.00
B183: 5 день
A184: № 45 Сбор.рец. На прод-ию для обуч. Во всех образ.учреж-Дели -2017 | B184: Салат из свежей капусты с морковью | C184: 60 | D184: 0.79 | E184: 1.95 | F184: 3.88 | G184: 36.24 | H184: 0.01 | I184: 10.26 | J184: 0.00 | K184: 5.03 | L184: 14.98 | M184: 16.98 | N184: 9.05 | O184: 0.28
A185: № 265 Сбор.рец. На прод-ию для обуч. Во всех образ.учреж-Дели -2017 | B185: Плов из говядины с рисом | C185: 50/150 | D185: 16.03 | E185: 18.16 | F185: 45.91 | G185: 415.89 | H185: 0.07 | I185: 1.80 | J185: 0.00 | K185: 4.00 | L185: 18.14 | M185: 242.92 | N185: 51.52 | O185: 3.39
A186: № 376 Сбор.рец. На прод-ию для обуч. Во всех образ.учреж-Дели 2017 | B186: Чай с сахаром, с яблоком | C186: 180/10/10 | D186: 0.11 | E186: 0.06 | F186: 10.990 | G186: 45 | H186: 0.003 | I186: 1.03 | K186: 0.02 | L186: 12.700 | M186: 3.9 | N186: 2.3 | O186: 0.500
A187: Хим.состав и калорийность российских продуктов питания табл 6 стр 134 , 2012 Дели + | B187: Хлеб пшеничный | C187: 25 | D187: 1.900 | E187: 0.200 | F187: 12.300 | G187: 59 | H187: 0.028 | I187: 0 | J187: 0 | K187: 0.275 | L187: 5.000 | M187: 16.250 | N187: 3.500 | O187: 0.275
A188: Хим.состав и калорийность российских продуктов питания,табл 6, стр 144 , 2012 Дели + | B188: Хлеб ржаной | C188: 20 | D188: 1.320 | E188: 0.240 | F188: 7.920 | G188: 40 | H188: 0.034 | I188: 0 | J188: 0 | K188: 0.280 | L188: 5.800 | M188: 30.000 | N188: 9.400 | O188: 0.780 | P188: 0 | Q188: 0
B189: Итого: | C189: 505 | D189: =D184+D185+D186+D187+D188 -> 20.15 | E189: 20.61 | F189: 80.99 | G189: 595.53 | H189: 0.15 | I189: 13.08 | J189: 0.00 | K189: 9.61 | L189: 56.62 | M189: 310.05 | N189: 75.77 | O189: 5.23 | P189: =P184+P185+#REF!+P186+P188 ->  | Q189: =Q184+Q185+#REF!+Q186+Q188 -> 
B191: 6 день
A192: Хим.состав и калорийность российских продуктов питания табл 9 стр 184 , 2012 Дели + | B192: Плоды и ягоды свежие (яблоки) | C192: 100 | D192: 0.4 | E192: 0.4 | F192: 9.8 | G192: 47 | H192: 0.03 | I192: 10 | K192: 0.2 | L192: 16 | M192: 11 | N192: 9 | O192: 2.2
A193: № 234,330 Сбор.рец. На прод-ию для обуч. Во всех образ.учреж-Дели 2017 | B193: Биточки рыбные в сметанном соусе | C193: 80/20 | D193: 9.105 | E193: 10.100 | F193: 12.190 | G193: 146.52 | H193: 0.052 | I193: 0.536 | J193: 10.920 | K193: 4.079 | L193: 32.804 | M193: 120.770 | N193: 19.248 | O193: 1.066
A194: № 312 Сбор.рец. На прод-ию для обуч. Во всех образ.учреж-Дели 2017 | B194: Картофельное пюре | C194: 150 | D194: 3.065 | E194: 4.802 | F194: 20.439 | G194: 137.25 | H194: 0.140 | I194: 18.161 | J194: 0.000 | K194: 0.182 | L194: 36.975 | M194: 86.595 | N194: 27.750 | O194: 1.010
A195: № 382 Сбор.рец. На прод-ию для обуч. Во всех образ.учреж-Дели 2017 | B195: Какао с молоком | C195: 200 | D195: 4.08 | E195: 3.54 | F195: 17.58 | G195: 120.96 | H195: 0.06 | I195: 1.59 | J195: 24.40 | K195: 0.00 | L195: 152.22 | M195: 124.56 | N195: 21.34 | O195: 0.48
A196: Хим.состав и калорийность российских продуктов питания табл 6 стр 134 , 2012 Дели + | B196: Хлеб пшеничный | C196: 20 | D196: 1.520 | E196: 0.160 | F196: 9.840 | G196: 47 | H196: 0.022 | I196: 0 | J196: 0 | K196: 0.220 | L196: 4.000 | M196: 13.000 | N196: 2.800 | O196: 0.220
A197: Хим.состав и калорийность российских продуктов питания,табл 6, стр 144 , 2012 Дели + | B197: Хлеб ржаной | C197: 30 | D197: =D188*1.5 -> 1.980 | E197: =E188*1.5 -> 0.360 | F197: 11.880 | G197: 59.400 | H197: 0.051 | I197: 0.000 | J197: 0.000 | K197: 0.420 | L197: 8.700 | M197: 45.000 | N197: 14.100 | O197: 1.170 | P197: 0.000 | Q197: 0.000
B198: Итого: | C198: 600 | D198: =D197+D196+D195+D194+D193+D192 -> 20.15 | E198: =E197+E196+E195+E194+E193+E192 -> 19.37 | F198: =F197+F196+F195+F194+F193+F192 -> 81.73 | G198: 558.13 | H198: 0.35 | I198: 30.28 | J198: 35.32 | K198: 5.10 | L198: 250.70 | M198: 400.93 | N198: 94.24 | O198: 6.14 | P198: 25% | Q198: 25%
B199: ВСЕГО за 12 дней: | C199: =C66+C75+C85+C101+C111+C121+C143+C151+C160+C181+C189+C198 -> 6531 | D199: =D66+D75+D85+D101+D111+D121+D143+D151+D160+D181+D189+D198 -> 228.42 | E199: =E66+E75+E85+E101+E111+E121+E143+E151+E160+E181+E189+E198 -> 230.59 | F199: =F66+F75+F85+F101+F111+F121+F143+F151+F160+F181+F189+F198 -> 963.75 | G199: =G66+G75+G85+G101+G111+G121+G143+G151+G160+G181+G189+G198 -> 6796.38 | H199: =H66+H75+H85+H101+H111+H121+H143+H151+H160+H181+H189+H198 -> 3.59 | I199: =I66+I75+I85+I101+I111+I121+I143+I151+I160+I181+I189+I198 -> 321.16 | J199: =J66+J75+J85+J101+J111+J121+J143+J151+J160+J181+J189+J198 -> 586.97 | K199: =K66+K75+K85+K101+K111+K121+K143+K151+K160+K181+K189+K198 -> 121.28 | L199: =L66+L75+L85+L101+L111+L121+L143+L151+L160+L181+L189+L198 -> 1796.13 | M199: =M66+M75+M85+M101+M111+M121+M143+M151+M160+M181+M189+M198 -> 3772.24 | N199: =N66+N75+N85+N101+N111+N121+N143+N151+N160+N181+N189+N198 -> 1051.28 | O199: =O66+O75+O85+O101+O111+O121+O143+O151+O160+O181+O189+O198 -> 66.90
B200: В среднем на 1 учащегося в день: | C200: =C199/12 -> 544 | D200: =D199/12 -> 19.03 | E200: 19.22 | F200: 80.31 | G200: 566.36 | H200: 0.30 | I200: 26.76 | J200: 48.91 | K200: 10.11 | L200: 149.68 | M200: 314.35 | N200: 87.61 | O200: 5.58 | P200: 25%

Sheet Меню старшие 5-11 кл ОСЕНЬ
B12: Согласовано | I12: Разработано и утвеждено
B13: Руководитель общеобразовательного учреждения | I13: Директор ООО "АБК-Пэймент""
B15: ________________________ | I15: ________________Р.Р. Рахматуллин
B20: Примерное цикличное двенадцатидневное меню
B21: Для организации питания обучающихся общеобразовательных организаций Аксубаевского района Республики Татарстан
B22: в возрасте с12лет и старше (5-11 классы)
B48: ПРИМЕРНОЕ ДВУХНЕДЕЛЬНОЕ МЕНЮ ДЛЯ ОБУЧАЮЩИХСЯ В ОБЩЕОБРАЗОВАТЕЛЬНЫХ ОРГАНИЗАЦИЯХ С 5 по 11 КЛАССЫ
B49: (общеобразовательные организации с режимом обучения до 6 часов)
A51: № рецептуры | B51: Наименование блюд | C51: Выход,г | D51: Белки, г | E51: Жиры, г | F51: Углеводы, г | G51: Калорийность, ккал | H51: Витамин B1, мг | I51: Витамин С, мг | J51: Витамин А, мг | K51: Витамин Е, мг | L51: Ca, мг | M51: P, мг | N51: Mg, мг | O51: Fe, мг
B52: 1-ая неделя
B53: 1 день
A54: № 243 Сбор.рец. На прод-ию для обуч. Во всех образ.учреж-Дели 2017 | B54: Сосиски отварные | C54: 100 | D54: 10.07 | E54: 12.84 | F54: 0.36 | G54: 201.12 | H54: 0.15 | I54: 0.22 | J54: 3.04 | K54: 2.52 | L54: 14.98 | M54: 116.22 | N54: 17.87 | O54: 1.89
A55: № 203 Сбор.рец. На прод-ию для обуч. Во всех образ.учреж-Дели 2017 | B55: Макаронные изделия отварные с маслом сливочным | C55: 150/3 | D55: 5.10 | E55: 3.08 | F55: 31.96 | G55: 176.10 | H55: 0.06 | I55: 0.00 | J55: 12.00 | K55: 0.80 | L55: 11.91 | M55: 38.07 | N55: 8.62 | O55: 0.86
A56: №349 Сбор.рец. На прод-ию для обуч. Во всех образ.учреж-Дели 2017 | B56: Компот из сухофруктов (75С) | C56: 200 | D56: 0.66 | E56: 0.09 | F56: 22.03 | G56: 92.90 | H56: 0.02 | I56: 0.73 | J56: 0.00 | K56: 0.51 | L56: 32.48 | M56: 23.44 | N56: 17.46 | O56: 0.70
A57: Хим.состав и калорийность российских продуктов питания табл 6 стр 134 , 2012 Дели + | B57: Хлеб пшеничный | C57: 25 | D57: 1.54 | E57: 0.20 | F57: 12.30 | G57: 58.75 | H57: 0.03 | I57: 0.00 | J57: 0.00 | K57: 0.28 | L57: 5.00 | M57: 16.25 | N57: 3.50 | O57: 0.28
A58: Хим.состав и калорийность российских продуктов питания,табл 6, стр 144 , 2012 Дели + | B58: Хлеб ржаной | C58: 20 | D58: 1.32 | E58: 0.54 | F58: 17.82 | G58: 89.10 | H58: 0.08 | I58: 0.00 | J58: 0.00 | K58: 0.63 | L58: 13.05 | M58: 67.50 | N58: 21.15 | O58: 1.76
B59: Итого: | C59: 498 | D59: =SUM(D54:D58) -> 18.70 | E59: 16.75 | F59: 84.47 | G59: 617.97 | H59: 0.33 | I59: 0.94 | J59: 15.04 | K59: 4.74 | L59: 77.42 | M59: 261.48 | N59: 68.60 | O59: 5.48 | P59: =P54+P55+P56+P57+P58 -> 0.00 | Q59: =Q54+Q55+Q56+Q57+Q58 -> 0.00
B61: 2 день
A62: ТТК | B62: Гуляш из куриных грудок | C62: 50/50 | D62: 15.94 | E62: 8.83 | F62: 3.40 | G62: 154.39 | H62: 0.08 | I62: 3.97 | J62: 28.40 | K62: 3.20 | L62: 17.17 | M62: 122.75 | N62: 18.27 | O62: 1.14
A63: № 171 Сбор.рец. На прод-ию для обуч. Во всех образ.учреж-Дели 2017 | B63: Каша гречневая рассыпчатая с маслом сливочным | C63: 150 | D63: 4.57 | E63: 3.29 | F63: 27.72 | G63: 174.00 | H63: 0.21 | I63: 0.00 | J63: 0.00 | K63: 0.40 | L63: 23.99 | M63: 207.35 | N63: 140.52 | O63: 4.71
A64: № 377 Сбор.рец. На прод-ию для обуч. Во всех образ.учреж-Дели 2017 | B64: Чай с сахаром, с лимоном | C64: 185/10/5 | D64: 0.13 | E64: 0.02 | F64: 10.20 | G64: 42.00 | I64: 2.83 | K64: 0.01 | L64: 14.05 | M64: 4.40 | N64: 2.40 | O64: 0.34
A65: Хим.состав и калорийность российских продуктов питания табл 6 стр 134 , 2012 Дели + | B65: Хлеб пшеничный | C65: 20 | D65: 1.520 | E65: 0.160 | F65: 9.840 | G65: 47 | H65: 0.022 | I65: 0 | J65: 0 | K65: 0.220 | L65: 4.000 | M65: 13.000 | N65: 2.800 | O65: 0.220
A66: Хим.состав и калорийность российских продуктов питания,табл 6, стр 144 , 2012 Дели + | B66: Хлеб ржаной | C66: 20 | D66: 1.32 | E66: 0.54 | F66: 17.82 | G66: 89.10 | H66: 0.08 | I66: 0.00 | J66: 0.00 | K66: 0.63 | L66: 13.05 | M66: 67.50 | N66: 21.15 | O66: 1.76
B67: Итого: | C67: 490 | D67: =D66+D65+D64+D63+D62 -> 23.48 | E67: =E66+E65+E64+E63+E62 -> 12.84 | F67: 68.98 | G67: 506.49 | H67: 0.39 | I67: 6.80 | J67: 28.40 | K67: 4.46 | L67: 72.26 | M67: 415.00 | N67: 185.14 | O67: 8.16 | P67: =P66+P65+P64+P63+P62 -> 0.00 | Q67: =Q66+Q65+Q64+Q63+Q62 -> 0.00
B69: 3 день
A70: № 294 Сбор.рец. На прод-ию для обуч. Во всех образ.учреж-Дели -2017 | B70: Котлеты из мяса кур в томатном соусе с овощами | C70: 50/40 | D70: 9.26 | E70: 7.58 | F70: 13.11 | G70: 157.96 | H70: 0.11 | I70: 1.40 | J70: 23.54 | K70: 34.30 | L70: 38.13 | M70: 53.20 | N70: 18.49 | O70: 2.05
A71: № 304 Сбор.рец. На прод-ию для обуч. Во всех образ.учреж-Дели 2017 | B71: Рис отварной рассыпчатый | C71: 150 | D71: 3.70 | E71: 0.52 | F71: 39.16 | G71: 176.00 | H71: 0.03 | I71: 0.00 | J71: 0.00 | K71: 0.28 | L71: 1.37 | M71: 60.95 | N71: 16.34 | O71: 0.53
A72: № 376 Сбор.рец. На прод-ию для обуч. Во всех образ.учреж-Дели 2017 | B72: Чай с сахаром | C72: 190/10 | D72: 0.07 | E72: 0.02 | F72: 10.00 | G72: 40.00 | I72: 0.03 | L72: 10.95 | M72: 2.80 | N72: 1.40 | O72: 0.26
A73: Хим.состав и калорийность российских продуктов питания табл 6 стр 134 , 2012 Дели + | B73: Хлеб пшеничный | C73: 20 | D73: 1.52 | E73: 0.16 | F73: 9.84 | G73: 47.00 | H73: 0.02 | I73: 0.00 | J73: 0.00 | K73: 0.22 | L73: 4.00 | M73: 13.00 | N73: 2.80 | O73: 0.22
A74: Хим.состав и калорийность российских продуктов питания,табл 6, стр 144 , 2012 Дели + | B74: Хлеб ржаной | C74: 20 | D74: 1.32 | E74: 0.54 | F74: 17.82 | G74: 89.10 | H74: 0.08 | I74: 0.00 | J74: 0.00 | K74: 0.63 | L74: 13.05 | M74: 67.50 | N74: 21.15 | O74: 1.76
B75: Итого: | C75: 480 | D75: =SUM(D70:D74) -> 15.87 | E75: 8.82 | F75: 89.93 | G75: 510.06 | H75: 0.24 | I75: 1.43 | J75: 23.54 | K75: 35.43 | L75: 67.50 | M75: 197.45 | N75: 60.18 | O75: 4.82 | P75: 0.00 | Q75: 0.00
B77: 4 день
A78: № 45 Сбор.рец. На прод-ию для обуч. Во всех образ.учреж-Дели -2017 | B78: Салат из свежей белокочанной капусты | C78: 100 | D78: 1.31 | E78: 3.25 | F78: 6.47 | G78: 60.40 | H78: 0.02 | I78: 17.10 | J78: 0.00 | K78: 8.39 | L78: 24.97 | M78: 28.31 | N78: 15.09 | O78: 0.47
A79: № 229 Сбор.рец. На прод-ию для обуч. Во всех образ.учреж-Дели 2017 | B79: Рыба, тушенная в томате с овощами | C79: 50/50 | D79: 9.15 | E79: 5.62 | F79: 7.80 | G79: 105.00 | H79: 0.05 | I79: 3.73 | J79: 5.82 | K79: 2.52 | L79: 39.07 | M79: 162.19 | N79: 48.53 | O79: 0.85
A80: № 312 Сбор.рец. На прод-ию для обуч. Во всех образ.учреж-Дели -2017 | B80: Пюре картофельное | C80: 150 | D80: 3.06 | E80: 4.81 | F80: 20.44 | G80: 137.29 | H80: 0.14 | I80: 18.16 | J80: 0.02 | K80: 0.18 | L80: 36.98 | M80: 86.60 | N80: 27.75 | O80: 1.01 | P80: 0 | Q80: 0
A81: № 376 Сбор.рец. На прод-ию для обуч. Во всех образ.учреж-Дели 2017 | B81: Чай с сахаром,с яблоком | C81: 180/10/10 | D81: 0.11 | E81: 0.06 | F81: 12.69 | G81: 45.05 | H81: 0.00 | I81: 1.03 | K81: 0.02 | L81: 12.70 | M81: 3.90 | N81: 2.30 | O81: 0.50
A82: Хим.состав и калорийность российских продуктов питания табл 6 стр 134 , 2012 Дели + | B82: Хлеб пшеничный | C82: 20 | D82: 1.520 | E82: 0.160 | F82: 9.840 | G82: 47 | H82: 0.022 | I82: 0 | J82: 0 | K82: 0.220 | L82: 4.000 | M82: 13.000 | N82: 2.800 | O82: 0.220
A83: Хим.состав и калорийность российских продуктов питания,табл 6, стр 144 , 2012 Дели + | B83: Хлеб ржаной | C83: 20 | D83: 1.32 | E83: 0.54 | F83: 17.82 | G83: 89.10 | H83: 0.08 | I83: 0.00 | J83: 0.00 | K83: 0.63 | L83: 13.05 | M83: 67.50 | N83: 21.15 | O83: 1.76
B84: Итого: | C84: 590 | D84: =SUM(D78:D83) -> 16.47 | E84: =SUM(E78:E83) -> 14.44 | F84: 75.06 | G84: 483.84 | H84: 0.31 | I84: 40.02 | J84: 5.84 | K84: 11.96 | L84: 130.77 | M84: 361.49 | N84: 117.62 | O84: 4.80 | P84: 20% | Q84: 20%
B86: 5 день
A87: № 271 Сбор.рец. На прод-ию для обуч. Во всех образ.учреж-Дели 2017 | B87: Котлеты говяжьи в томатном соусе | C87: 50/30 | D87: 9.27 | E87: 9.69 | F87: 9.31 | G87: 163.31 | H87: 0.04 | I87: 0.54 | J87: 5.49 | K87: 2.04 | L87: 9.58 | M87: 100.37 | N87: 20.12 | O87: 1.64
A88: № 199 Сбор.рец. На прод-ию для обуч. Во всех образ.учреж-Дели 2017 | B88: Гороховое пюре | C88: 150 | D88: 5.58 | E88: 1.42 | F88: 34.92 | G88: 175.54 | H88: 0.50 | I88: 0.00 | J88: 0.02 | K88: 0.45 | L88: 92.91 | M88: 210.83 | N88: 61.70 | O88: 4.68
A89: № 377 Сбор.рец. На прод-ию для обуч. Во всех образ.учреж-Дели 2017 | B89: Чай с сахаром, с лимоном | C89: 185/10/5 | D89: 0.13 | E89: 0.02 | F89: 10.20 | G89: 42.00 | I89: 2.83 | K89: 0.01 | L89: 14.05 | M89: 4.40 | N89: 2.40 | O89: 0.34
A90: Хим.состав и калорийность российских продуктов питания табл 6 стр 134 , 2012 Дели + | B90: Хлеб пшеничный | C90: 20 | D90: 1.520 | E90: 0.160 | F90: 9.840 | G90: 47 | H90: 0.022 | I90: 0 | J90: 0 | K90: 0.220 | L90: 4.000 | M90: 13.000 | N90: 2.800 | O90: 0.220
A91: Хим.состав и калорийность российских продуктов питания,табл 6, стр 144 , 2012 Дели + | B91: Хлеб ржаной | C91: 20 | D91: 1.32 | E91: 0.54 | F91: 17.82 | G91: 89.10 | H91: 0.08 | I91: 0.00 | J91: 0.00 | K91: 0.63 | L91: 13.05 | M91: 67.50 | N91: 21.15 | O91: 1.76
B92: Итого: | C92: 470 | D92: =SUM(D87:D91) -> 17.82 | E92: 11.83 | F92: 82.09 | G92: 516.95 | H92: 0.63 | I92: 3.37 | J92: 5.51 | K92: 3.34 | L92: 133.60 | M92: 396.10 | N92: 108.16 | O92: 8.64 | P92: 25% | Q92: 25%
B95: 6 день
A96: №279,331 Сбор.рец. На прод-ию для питания детей в дошк образоват учрежд-Дели 2017 | B96: Тефтели мясные в сметанно-томатном соусе | C96: 60/40 | D96: 7.28 | E96: 11.79 | F96: 8.74 | G96: 133.99 | H96: 0.05 | I96: 0.28 | J96: 29.62 | K96: 0.42 | L96: 20.73 | M96: 80.20 | N96: 15.52 | O96: 0.64
A97: № 303 Сбор.рец. На прод-ию для обуч. Во всех образ.учреж-Дели 2017 | B97: Каша гречневая рассыпчатая | C97: 150 | D97: 4.580 | E97: 5.007 | F97: 20.522 | G97: 145.50 | H97: 0.116 | I97: 0.000 | J97: 0.000 | K97: 0.344 | L97: 8.445 | M97: 108.870 | N97: 72.030 | O97: 2.423
A98: № 376 Сбор.рец. На прод-ию для обуч. Во всех образ.учреж-Дели 2017 | B98: Чай с сахаром | C98: 190/10 | D98: 0.07 | E98: 0.02 | F98: 10.00 | G98: 40.00 | I98: 0.03 | L98: 10.95 | M98: 2.80 | N98: 1.40 | O98: 0.26
A99: Хим.состав и калорийность российских продуктов питания табл 6 стр 134 , 2012 Дели + | B99: Хлеб пшеничный | C99: 30 | D99: 2.28 | E99: 0.24 | F99: 14.76 | G99: 70.50 | H99: 0.03 | I99: 0.00 | J99: 0.00 | K99: 0.33 | L99: 6.00 | M99: 19.50 | N99: 4.20 | O99: 0.33
B100: Итого: | C100: 480 | D100: =D99+D98+D97+D96 -> 14.21 | E100: =E99+E98+E97+E96 -> 17.06 | F100: 54.02 | G100: 389.99 | H100: 0.20 | I100: 0.31 | J100: 29.62 | K100: 1.09 | L100: 46.12 | M100: 211.37 | N100: 93.15 | O100: 3.65 | P100: 25% | Q100: 25%
A107: № рецептуры | B107: Наименование блюд | C107: Выход,г | D107: Белки, г | E107: Жиры, г | F107: Углеводы, г | G107: Калорийность, ккал | H107: Витамин B1, мг | I107: Витамин С, мг | J107: Витамин А, мг | K107: Витамин Е, мг | L107: Ca, мг | M107: P, мг | N107: Mg, мг | O107: Fe, мг
B108: 2-ая неделя
B109: 1 день
A110: № 288 Сбор.рец. На прод-ию для обуч. Во всех образ.учреж-Дели 2017 | B110: Куриная грудка отварная | C110: 75 | D110: 23.10 | E110: 4.20 | F110: 0.00 | G110: 126.00 | H110: 0.03 | I110: 0.00 | J110: 15.00 | K110: 0.23 | L110: 29.25 | M110: 107.25 | N110: 15.00 | O110: 15.00
A111: № 203 Сбор.рец. На прод-ию для обуч. Во всех образ.учреж-Дели 2017 | B111: Макаронные изделия отварные с маслом сливочным | C111: 150/3 | D111: 5.100 | E111: 2.847 | F111: 31.962 | G111: 186 | H111: 0.057 | I111: 0.000 | J111: 12.000 | K111: 0.8025 | L111: 11.912 | M111: 38.068 | N111: 8.619 | O111: 0.858
A112: № 376 Сбор.рец. На прод-ию для обуч. Во всех образ.учреж-Дели 2017 | B112: Чай с сахаром,с яблоком | C112: 180/10/10 | D112: 0.110 | E112: 0.060 | F112: 12.690 | G112: 45 | H112: 0.003 | I112: 1.030 | K112: 0.020 | L112: 12.700 | M112: 3.900 | N112: 2.300 | O112: 0.500
A113: Хим.состав и калорийность российских продуктов питания табл 6 стр 134 , 2012 Дели + | B113: Хлеб пшеничный | C113: 20 | D113: 1.520 | E113: 0.160 | F113: 9.840 | G113: 47 | H113: 0.022 | I113: 0 | J113: 0 | K113: 0.220 | L113: 4.000 | M113: 13.000 | N113: 2.800 | O113: 0.220
A114: Хим.состав и калорийность российских продуктов питания,табл 6, стр 144 , 2012 Дели + | B114: Хлеб ржаной | C114: 20 | D114: 1.32 | E114: 0.54 | F114: 17.82 | G114: 89.10 | H114: 0.08 | I114: 0.00 | J114: 0.00 | K114: 0.63 | L114: 13.05 | M114: 67.50 | N114: 21.15 | O114: 1.76
B115: Итого: | C115: 468 | D115: =D114+D113+D112+D111+D110 -> 31.15 | E115: =E114+E113+E112+E111+E110 -> 7.81 | F115: 72.31 | G115: 493.25 | H115: 0.18 | I115: 1.03 | J115: 27.00 | K115: 1.90 | L115: 70.91 | M115: 229.72 | N115: 49.87 | O115: 18.33 | P115: =SUM(P110:P114) -> 0.00 | Q115: =SUM(Q110:Q114) -> 0.00
B117: 2 день
A118: №143,241 Сбор.рец. На прод-ию для обуч. Во всех образ.учреж-Дели 2017 | B118: Овощи тушеные с мясом | C118: 50/150 | D118: 9.10 | E118: 10.28 | F118: 22.34 | G118: 211.35 | H118: 0.11 | I118: 18.78 | J118: 39.00 | K118: 0.00 | L118: 68.94 | M118: 172.79 | N118: 38.24 | O118: 2.68
A119: № 377 Сбор.рец. На прод-ию для обуч. Во всех образ.учреж-Дели 2017 | B119: Чай с сахаром, с лимоном | C119: 185/10/5 | D119: 0.13 | E119: 0.02 | F119: 10.20 | G119: 42.00 | I119: 2.83 | K119: 0.01 | L119: 14.05 | M119: 4.40 | N119: 2.40 | O119: 0.34
A120: Хим.состав и калорийность российских продуктов питания табл 6 стр 134 , 2012 Дели + | B120: Хлеб пшеничный | C120: 20 | D120: 1.52 | E120: 0.16 | F120: 9.840 | G120: 47 | H120: 0.022 | I120: 0 | J120: 0 | K120: 0.22 | L120: 4.000 | M120: 13 | N120: 2.8 | O120: 0.220
A121: Хим.состав и калорийность российских продуктов питания,табл 6, стр 144 , 2012 Дели + | B121: Хлеб ржаной | C121: 30 | D121: 1.980 | E121: 0.360 | F121: 11.880 | G121: 59 | H121: 0.051 | I121: 0 | J121: 0 | K121: 0.420 | L121: 8.700 | M121: 45.000 | N121: 14.100 | O121: 1.170
B122: Итого: | C122: 450 | D122: =D121+D120+D119+D118 -> 12.73 | E122: =E121+E120+E119+E118 -> 10.82 | F122: 54.26 | G122: 359.75 | H122: 0.19 | I122: 21.61 | J122: 39.00 | K122: 0.65 | L122: 95.69 | M122: 235.19 | N122: 57.54 | O122: 4.41 | P122: =SUM(P118:P121) -> 0.00 | Q122: =SUM(Q118:Q121) -> 0.00
B124: 3 день
A125: № 294 Сбор.рец. На прод-ию для обуч. Во всех образ.учреж-Дели -2017 | B125: Котлеты из мяса кур в томатном соусе | C125: 60/40 | D125: 9.72 | E125: 16.12 | F125: 14.23 | G125: 241.16 | H125: 0.07 | I125: 1.57 | J125: 47.48 | K125: 1.83 | L125: 41.33 | M125: 71.42 | N125: 19.87 | O125: 1.09
A126: № 312 Сбор.рец. На прод-ию для обуч. Во всех образ.учреж-Дели -2017 | B126: Пюре картофельное | C126: 150 | D126: 3.09 | E126: 4.80 | F126: 20.44 | G126: 137.25 | H126: 0.14 | I126: 18.16 | J126: 0.00 | K126: 0.18 | L126: 36.98 | M126: 86.60 | N126: 27.75 | O126: 1.01
A127: № 376 Сбор.рец. На прод-ию для обуч. Во всех образ.учреж-Дели 2017 | B127: Чай с сахаром | C127: 190/10 | D127: 0.07 | E127: 0.02 | F127: 10.00 | G127: 40.00 | I127: 0.03 | L127: 10.95 | M127: 2.80 | N127: 1.40 | O127: 0.26
A128: Хим.состав и калорийность российских продуктов питания табл 6 стр 134 , 2012 Дели + | B128: Хлеб пшеничный | C128: 20 | D128: 1.52 | E128: 0.16 | F128: 9.840 | G128: 47 | H128: 0.022 | I128: 0 | J128: 0 | K128: 0.22 | L128: 4.000 | M128: 13 | N128: 2.8 | O128: 0.220
A129: Хим.состав и калорийность российских продуктов питания,табл 6, стр 144 , 2012 Дели + | B129: Хлеб ржаной | C129: 20 | D129: 1.320 | E129: 0.540 | F129: 17.820 | G129: 89 | H129: 0.077 | I129: 0 | J129: 0 | K129: 0.630 | L129: 13.050 | M129: 67.500 | N129: 21.150 | O129: 1.755
B130: Итого: | C130: 490 | D130: =SUM(D125:D129) -> 15.72 | E130: 21.64 | F130: 72.33 | G130: 554.51 | H130: 0.31 | I130: 19.76 | J130: 47.48 | K130: 2.86 | L130: 106.30 | M130: 241.32 | N130: 72.97 | O130: 4.34 | P130: 0.00 | Q130: 0.00
B135: 4 день
A136: №279,331 Сбор.рец. На прод-ию для питания детей в дошк образоват учрежд-Дели 2017 | B136: Тефтели мясные в сметанно-томатном соусе | C136: 60/40 | D136: 7.284 | E136: 11.790 | F136: 8.738 | G136: 124 | H136: 0.048 | I136: 0.276 | J136: 29.620 | K136: 0.421 | L136: 20.726 | M136: 80.202 | N136: 15.521 | O136: 0.640
A137: № 203 Сбор.рец. На прод-ию для обуч. Во всех образ.учреж-Дели 2017 | B137: Макаронные изделия отварные | C137: 150 | D137: 5.076 | E137: 0.676 | F137: 31.923 | G137: 166 | H137: 0.057 | I137: 0.000 | J137: 0.024 | K137: 0.7695658683 | L137: 11.193 | M137: 37.170 | N137: 8.619 | O137: 0.852
A138: № 376 Сбор.рец. На прод-ию для обуч. Во всех образ.учреж-Дели 2017 | B138: Чай с сахаром,с яблоком | C138: 180/10/10 | D138: 0.11 | E138: 0.06 | F138: 12.69 | G138: 45.05 | H138: 0.00 | I138: 1.03 | K138: 0.02 | L138: 12.70 | M138: 3.90 | N138: 2.30 | O138: 0.50
A139: Хим.состав и калорийность российских продуктов питания табл 6 стр 134 , 2012 Дели + | B139: Хлеб пшеничный | C139: 20 | D139: 1.520 | E139: 0.160 | F139: 9.840 | G139: 47 | H139: 0.022 | I139: 0 | J139: 0 | K139: 0.220 | L139: 4.000 | M139: 13.000 | N139: 2.800 | O139: 0.220
A140: Хим.состав и калорийность российских продуктов питания,табл 6, стр 144 , 2012 Дели + | B140: Хлеб ржаной | C140: 20 | D140: 1.320 | E140: 0.540 | F140: 17.820 | G140: 89 | H140: 0.077 | I140: 0 | J140: 0 | K140: 0.630 | L140: 13.050 | M140: 67.500 | N140: 21.150 | O140: 1.755
B141: Итого: | C141: 490 | D141: =D140+D139+D138+D137+D136 -> 15.31 | E141: =E140+E139+E138+E137+E136 -> 13.23 | F141: 81.01 | G141: 471.48 | H141: 0.21 | I141: 1.31 | J141: 29.64 | K141: 2.06 | L141: 61.67 | M141: 201.77 | N141: 50.39 | O141: 3.97 | P141: 0.00 | Q141: 0.00
B143: 5 день
A144: № 45 Сбор.рец. На прод-ию для обуч. Во всех образ.учреж-Дели -2017 | B144: Салат из свежей белокочанной капусты | C144: 100 | D144: 1.312 | E144: 3.249 | F144: 6.466 | G144: 60.4 | H144: 0.022 | I144: 17.098 | J144: 0 | K144: 8.39 | L144: 24.971 | M144: 28.307 | N144: 15.091 | O144: 0.466
A145: № 288 Сбор.рец. На прод-ию для обуч. Во всех образ.учреж-Дели -2017 | B145: Куриная грудка отварная | C145: 50 | D145: 11.70 | E145: 9.28 | F145: 0.17 | G145: 131.00 | H145: 0.02 | I145: 1.18 | J145: 29.10 | K145: 0.46 | L145: 26.80 | M145: 82.00 | N145: 10.14 | O145: 0.94
A146: № 304 Сбор.рец. На прод-ию для обуч. Во всех образ.учреж-Дели -2017 | B146: Рис отварной рассыпчатый | C146: 150 | D146: 3.65 | E146: 5.37 | F146: 36.68 | G146: 209.70 | H146: 0.03 | I146: 0.00 | J146: 0.00 | K146: 0.28 | L146: 1.37 | M146: 60.95 | N146: 16.34 | O146: 0.53
A147: № 377 Сбор.рец. На прод-ию для обуч. Во всех образ.учреж-Дели 2017 | B147: Чай с сахаром, с лимоном | C147: 185/10/5 | D147: 0.13 | E147: 0.02 | F147: 10.200 | G147: 42 | I147: 2.83 | K147: 0.01 | L147: 14.050 | M147: 4.4 | N147: 2.4 | O147: 0.340
A148: Хим.состав и калорийность российских продуктов питания,табл 6, стр 144 , 2012 Дели + | B148: Хлеб ржаной | C148: 30 | D148: 1.980 | E148: 0.360 | F148: 11.880 | G148: 59 | H148: 0.051 | I148: 0 | J148: 0 | K148: 0.420 | L148: 8.700 | M148: 45.000 | N148: 14.100 | O148: 1.170
B149: Итого: | C149: 530 | D149: =D144+D148+D147+D146+D145 -> 18.77 | E149: =E144+E148+E147+E146+E145 -> 18.28 | F149: 65.40 | G149: 502.50 | H149: 0.12 | I149: 21.11 | J149: 29.10 | K149: 9.56 | L149: 75.89 | M149: 220.65 | N149: 58.07 | O149: 3.44 | P149: 0.00 | Q149: 0.00
B151: 6 день
A152: № 234,330 Сбор.рец. На прод-ию для обуч. Во всех образ.учреж-Дели 2017 | B152: Биточки рыбные в сметанном соусе | C152: 50/20 | D152: 6.37 | E152: 7.07 | F152: 9.04 | G152: 102.56 | H152: 0.04 | I152: 0.37 | J152: 7.64 | K152: 2.86 | L152: 22.96 | M152: 84.54 | N152: 13.47 | O152: 0.75
A153: № 312 Сбор.рец. На прод-ию для обуч. Во всех образ.учреж-Дели 2017 | B153: Картофельное пюре | C153: 150 | D153: 3.06 | E153: 4.80 | F153: 20.44 | G153: 137.25 | H153: 0.14 | I153: 18.16 | J153: 0.00 | K153: 0.18 | L153: 36.98 | M153: 86.60 | N153: 27.75 | O153: 1.01
A154: № 376 Сбор.рец. На прод-ию для обуч. Во всех образ.учреж-Дели 2017 | B154: Чай с сахаром | C154: 190/10 | D154: 0.07 | E154: 0.02 | F154: 10.00 | G154: 40.00 | I154: 0.03 | L154: 10.95 | M154: 2.80 | N154: 1.40 | O154: 0.26
A155: Хим.состав и калорийность российских продуктов питания табл 6 стр 134 , 2012 Дели + | B155: Хлеб пшеничный | C155: 20 | D155: 1.520 | E155: 0.160 | F155: 9.840 | G155: 47 | H155: 0.022 | I155: 0 | J155: 0 | K155: 0.220 | L155: 4.000 | M155: 13.000 | N155: 2.800 | O155: 0.220
A156: Хим.состав и калорийность российских продуктов питания,табл 6, стр 144 , 2012 Дели + | B156: Хлеб ржаной | C156: 20 | D156: 1.320 | E156: 0.540 | F156: 17.820 | G156: 89 | H156: 0.077 | I156: 0 | J156: 0 | K156: 0.630 | L156: 13.050 | M156: 67.500 | N156: 21.150 | O156: 1.755
B157: Итого: | C157: 460 | D157: =D152+D153+D154+D155+D156 -> 12.35 | E157: =E152+E153+E154+E155+E156 -> 12.59 | F157: 67.14 | G157: 415.91 | H157: 0.27 | I157: 18.57 | J157: 7.64 | K157: 3.89 | L157: 87.94 | M157: 254.43 | N157: 66.57 | O157: 3.99 | P157: 25% | Q157: 25%
B158: ВСЕГО за 12 дней: | C158: =C59+C67+C75+C84+C92+C100+C115+C122+C130+C141+C149+C157 -> 5896 | D158: 212.577098 | E158: 166.1025382 | F158: 866.995285 | G158: 5822.706849 | H158: 3.371771056 | I158: 136.2518684 | J158: 287.8250488 | K158: 81.94070816 | L158: 1026.060872 | M158: 3225.964888 | N158: 988.2660224 | O158: 74.02404599
B159: В среднем на 1 учащегося в день: | C159: =C158/12 -> 491 | D159: =D158/12 -> 17.71 | E159: 13.84 | F159: 72.25 | G159: 485.23 | H159: 0.28 | I159: 11.35 | J159: 23.99 | K159: 6.83 | L159: 85.51 | M159: 268.83 | N159: 82.36 | O159: 6.17 | P159: 20-25%

Sheet Замена 1 неделя
B2: Замена блюда
B4: День | C4: Прием пищи | D4: Заменяемое блюдо/ Вариант Замены | F4: Выход,г | G4: Белки,г | H4: Жиры,г | I4: Углеводы,г | J4: ЭЦ,ккал
B5: День 1 (1 неделя) | C5: Горячий завтрак младшие классы (7-11 лет) | D5: Салат из моркови с яблоками | E5: по меню | F5: 60 | G5: 0.64 | H5: 0.10 | I5: 5.11 | J5: 23.94
D6: Котлета домашняя из говядины | F6: 90 | G6: 8.15 | H6: 10.50 | I6: 8.10 | J6: 199.57
D7: Макаронные изделия отварные с маслом сливочным | F7: 150/5 | G7: 5.12 | H7: 4.53 | I7: 31.99 | J7: 189.30
D8: Компот из сухофруктов (75С) | F8: 200 | G8: 0.66 | H8: 0.09 | I8: 22.03 | J8: 92.90
D9: Печенье | F9: 40 | G9: 3.70 | H9: 4.70 | I9: 2.85 | J9: 21.50
D10: Хлеб ржаной | F10: 20 | G10: 1.32 | H10: 0.54 | I10: 17.82 | J10: 89.10
D11: Итого: | F11: 565 | G11: =G10+G9+G8+G7+G6+G5 -> 19.59 | H11: =H10+H9+H8+H7+H6+H5 -> 20.46 | I11: =I10+I9+I8+I7+I6+I5 -> 87.90 | J11: =J10+J9+J8+J7+J6+J5 -> 616.31 | K11: 25%
D13: Салат из моркови с яблоками | E13: замена | F13: 60 | G13: 0.64 | H13: 0.10 | I13: 5.11 | J13: 23.94
D14: Сосиски отварные | F14: 100 | G14: 8.57 | H14: 10.74 | I14: 0.36 | J14: 200.12
D15: Макаронные изделия отварные с маслом сливочным | F15: 150/5 | G15: 5.12 | H15: 4.53 | I15: 31.99 | J15: 189.30
D16: Компот из сухофруктов (75С) | F16: 200 | G16: 0.66 | H16: 0.09 | I16: 22.03 | J16: 92.90
D17: Печенье | F17: 40 | G17: 3.70 | H17: 4.70 | I17: 2.85 | J17: 21.50
D18: Хлеб ржаной | F18: 20 | G18: 1.32 | H18: 0.54 | I18: 17.82 | J18: 89.10
D19: Итого с заменой на сосиски: | F19: 575 | G19: =G18+G17+G16+G15+G14+G13 -> 20.01 | H19: =H18+H17+H16+H15+H14+H13 -> 20.70 | I19: =I18+I17+I16+I15+I14+I13 -> 80.16 | J19: =J18+J17+J16+J15+J14+J13 -> 616.86 | K19: 25%
B23: День | C23: Прием пищи | D23: Заменяемое блюдо/ Вариант Замены | E23: по меню | F23: Выход,г | G23: Белки,г | H23: Жиры,г | I23: Углеводы,г | J23: ЭЦ,ккал
B24: День 6 (1 неделя) | C24: Горячий завтрак младшие классы (7-11 лет) | D24: Плоды и ягоды свежие (яблоки) | F24: 100 | G24: 0.40 | H24: 0.40 | I24: 9.80 | J24: 47.00
D25: Сыр порционно | F25: 10 | G25: 2.03 | H25: 2.63 | I25: 0.00 | J25: 34.33
D26: Пельмени мясные отварные с маслом сливочным | F26: 170/5 | G26: 11.54 | H26: 14.70 | I26: 40.82 | J26: 346.25
D27: Кофейный напиток | F27: 200 | G27: 2.87 | H27: 2.18 | I27: 15.90 | J27: 80.60
D28: Хлеб пшеничный | F28: 40 | G28: 3.04 | H28: 0.32 | I28: 19.68 | J28: 94.00
D29: Итого: | F29: 525 | G29: =G28+G27+G26+G25+G24 -> 19.88 | H29: =H28+H27+H26+H25+H24 -> 20.23 | I29: =I28+I27+I26+I25+I24 -> 86.20 | J29: =J28+J27+J26+J25+J24 -> 602.18 | K29: 25%
D31: Плоды и ягоды свежие (яблоки) | E31: замена | F31: 100 | G31: 0.40 | H31: 0.40 | I31: 9.80 | J31: 47.00
D32: Сыр порционно | F32: 10 | G32: 2.03 | H32: 2.63 | I32: 0.00 | J32: 34.33
D33: Тефтели мясные в томатном соусе | F33: 60/40 | G33: 7.28 | H33: 11.79 | I33: 8.74 | J33: 133.99
D34: Каша гречневая рассыпчатая | F34: 150 | G34: 4.580 | H34: 3.300 | I34: 27.730 | J34: 174.00
D35: Кофейный напиток | F35: 200 | G35: 2.87 | H35: 2.18 | I35: 15.90 | J35: 80.60
D36: Хлеб пшеничный | F36: 40 | G36: 3.04 | H36: 0.32 | I36: 19.68 | J36: 94.00
D37: Итого: | F37: 600 | G37: =G36+G35+G33+G32+G31+G34 -> 20.20 | H37: =H36+H35+H33+H32+H31+H34 -> 20.62 | I37: =I36+I35+I33+I32+I31+I34 -> 81.85 | J37: =J36+J35+J33+J32+J31+J34 -> 563.92 | K37: 25%

Sheet Замена 2 неделя
B2: День | C2: Прием пищи | D2: Заменяемое блюдо/ Вариант Замены | F2: Выход,г | G2: Белки,г | H2: Жиры,г | I2: Углеводы,г | J2: ЭЦ,ккал
B3: День 2 (2 неделя) | C3: Горячий завтрак младшие классы (7-11 лет) | D3: Бутерброд с маслом сливочным и сыром | E3: по меню | F3: 60 | G3: 7.03 | H3: 7.94 | I3: 19.75 | J3: 178.50
D4: Овощи тушеные с мясом | F4: 50/150 | G4: 9.10 | H4: 10.28 | I4: 22.34 | J4: 211.35
D5: Чай "Витаминный" с ягодами | F5: 185/10/5 | G5: 0.24 | H5: 0.09 | I5: 12.42 | J5: 54.20
D6: Батончик злаковый | F6: 24 | G6: 1.20 | H6: 1.92 | I6: 17.52 | J6: 93.60
D7: Хлеб ржаной | F7: 40 | G7: 2.64 | H7: 0.48 | I7: 15.84 | J7: 79.20
D8: Итого: | F8: 524 | G8: =G3+G4+G5+G6+G7 -> 20.21 | H8: =H3+H4+H5+H6+H7 -> 20.71 | I8: =I3+I4+I5+I6+I7 -> 87.87 | J8: =J3+J4+J5+J6+J7 -> 616.85 | K8: 25%
D10: Сыр порционно | E10: замена | F10: 10 | G10: 2.63 | H10: 2.66 | I10: 0.00 | J10: 34.33
D11: ИЛИ Котлета домашняя из говядины | F11: 90 | G11: 8.15 | H11: 10.50 | I11: 8.10 | J11: 199.57
D12: ИЛИ СОСИСКИ ОТВАРНЫЕ | F12: 100 | G12: 8.37 | H12: 10.74 | I12: 0.36 | J12: 200.12
D13: Каша "Дружба" вязкая молочная с маслом сливочным | F13: 150/5 | G13: 4.75 | H13: 2.94 | I13: 36.92 | J13: 148.50
D14: Чай "Витаминный" с ягодами | F14: 185/10/5 | G14: 0.24 | H14: 0.09 | I14: 12.420 | J14: 54
D15: Хлеб пшеничный | F15: 20 | G15: 1.52 | H15: 0.16 | I15: 9.84 | J15: 47.00
D16: Хлеб ржаной | F16: 40 | G16: 2.640 | H16: 0.480 | I16: 15.840 | J16: 79
D17: Итого с заменой на котлеты: | F17: 515 | G17: =G10+G11+G13+G14+G15+G16 -> 19.93 | H17: 18.78 | I17: 87.80 | J17: =J10+J11+J13+J14+J15+J16 -> 562.80 | K17: 25%
D18: Итого с заменой на сосиски: | F18: 525 | G18: =G10+G12+G13+G14+G15+G16 -> 20.15 | H18: =H10+H12+H13+H14+H15+H16+H10 -> 19.73 | I18: 79.62 | J18: =J10+J12+J13+J14+J15+J16 -> 563.35 | K18: 25%
B20: День 2 (2 неделя) | C20: Горячий завтрак старшие классы (12 лет и ст) | D20: Овощи тушеные с мясом | E20: по меню | F20: 50/150 | G20: 9.10 | H20: 10.28 | I20: 22.34 | J20: 211.35
D21: Чай с сахаром | F21: 190/10 | G21: 0.07 | H21: 0.02 | I21: 10.000 | J21: 40
D22: Хлеб пшеничный | F22: 20 | G22: 1.52 | H22: 0.16 | I22: 9.840 | J22: 47
D23: Хлеб ржаной | F23: 30 | G23: 1.980 | H23: 0.360 | I23: 11.880 | J23: 59
D24: Итого: | F24: 450 | G24: 23.29 | H24: 24.14 | I24: 93.00 | J24: 659.92
D26: СОСИСКИ ОТВАРНЫЕ | E26: замена | F26: 100 | G26: 8.37 | H26: 10.74 | I26: 0.36 | J26: 200.12
D27: Каша "Дружба" вязкая молочная | F27: 220/5 | G27: 5.79 | H27: 6.95 | I27: 56.75 | J27: 246.40
D28: Чай с сахаром | F28: 190/10 | G28: 0.07 | H28: 0.02 | I28: 10.000 | J28: 40
D29: Хлеб пшеничный | F29: 20 | G29: 1.520 | H29: 0.160 | I29: 9.840 | J29: 47
D30: Хлеб ржаной | F30: 30 | G30: 1.980 | H30: 0.360 | I30: 11.880 | J30: 59.400
D31: Итого с заменой на сосиски: | F31: 575 | G31: =G26+G27+G28+G29+G30 -> 17.73 | H31: =H26+H27+H28+H29+H30 -> 18.23 | I31: =I26+I27+I28+I29+I30 -> 88.83 | J31: =J26+J27+J28+J29+J30 -> 592.92

Sheet Меню сокр
A1: ПРИМЕРНОЕ ДВУХНЕДЕЛЬНОЕ МЕНЮ ДЛЯ ОБУЧАЮЩИХСЯ В ОБЩЕОБРАЗОВАТЕЛЬНЫХ ОРГАНИЗАЦИЯХ (сезон осенне-зимний)
M2: АКСУБАЕВО и АКСУБАЕВСКИЙ район
A3: ГОРЯЧИЙ ЗАВТРАК | M3: мл.кл. - 64,19 руб/ ст.кл - 35 руб.,
A4: 1-ая неделя
A5: 1 день | D5: 2 день | G5: 3 день | J5: 4 день | M5: 5 день | P5: 6 день
A6: Наименование блюд | B6: Выход,г | D6: Наименование блюд | E6: Выход,г | G6: Наименование блюд | H6: Выход,г | J6: Наименование блюд | K6: Выход,г | M6: Наименование блюд | N6: Выход,г | P6: Наименование блюд | Q6: Выход,г
B7: 7-11 лет | C7: 12 лет и старше | E7: 7-11 лет | F7: 12 лет и старше | H7: 7-11 лет | I7: 12 лет и старше | K7: 7-11 лет | L7: 12 лет и старше | N7: 7-11 лет | O7: 12 лет и старше | Q7: 7-11 лет | R7: 12 лет и старше
D8: Плоды и ягоды свежие (апельсин) | E8: 100 | F8: нет | P8: Плоды и ягоды свежие (яблоки) | Q8: 100 | R8: нет
A9: Салат из моркови с яблоками | B9: 60 | C9: нет | D9: Сыр порционно | E9: 10 | F9: нет | G9: Салат из отварной свеклы | H9: 60 | I9: нет | J9: Салат из свежей белокочанной капусты | K9: 60 | L9: 100 | M9: Салат из моркови с сахаром | N9: 60 | O9: нет | P9: Сыр порционно | Q9: 10 | R9: нет
A10: Котлета домашняя | B10: 90 | C10: нет | D10: Гуляш из говядины/Гуляш из куриных грудок | E10: 50/50 | F10: 50/50 | G10: Шницель куриный/Котлеты из мяса кур в томатном соусе | H10: 90 | I10: 50/40 | J10: Рыба тушеная с овощами в томате | K10: 50/50 | L10: 50/50 | M10: Котлеты говяжьи/Котлеты говяжьи в томатном соусе (для ст.кл) | N10: 90 | O10: 50/30 | P10: Пельмени с маслом сливочным | Q10: 170/5 | R10: нет
A11: Сосиски говяжьи (возможна замена котлеты на сосиски у младших кл., у старших кл. по меню) | B11: 100 | C11: 100 | P11: Тефтели мясные в сметанно- томатном соусе для старших (ВОЗМОЖНА ЗАМЕНА ПЕЛЬМЕНЕЙ и для МЛАДШИХ) | Q11: 60/40 | R11: 60/40
P12: Каша гречневая рассыпчатая для старших (ВОЗМОЖНА ЗАМЕНА ПЕЛЬМЕНЕЙ и для МЛАДШИХ) | Q12: 150 | R12: 150
A13: Макаронные изделия с маслом сливочным | B13: 150/5 | C13: 150/3 | D13: Каша гречневая рассыпчатая с маслом сливочным | E13: 150/5 | F13: 150 | G13: Рис отварной рассыпчатый с маслом сливочным/Рис отварной рассыпчатый (ст.кл) | H13: 150/5 | I13: 150 | J13: Пюре картофельное с маслом сливочным/Пюре картофельное | K13: 150/5 | L13: 150 | M13: Гороховое пюре с маслом сливочным/ Гороховое пюре | N13: 150/5 | O13: 150
A14: Компот из сухофруктов (75С) (сахара 10г) | B14: 200 | C14: 200 | D14: Чай с сахаром, с лимоном | E14: 185/10/5 | F14: 185/10/5 | G14: Чай с сахаром | H14: 190/10 | I14: 190/10 | J14: Компот из свежих яблок (75С) (сахара 10г)/Чай с сахаром,с яблоком | K14: 200 | L14: 180/10/10 | M14: Чай с мармеладом/ Чай с сахаром,с лимоном | N14: 185/15 | O14: 185/10/5 | P14: Кофейный напиток/Чай с сахаром | Q14: 200 | R14: 190/10
A15: Печенье | B15: 40 | C15: нет
A16: Хлеб пшеничный | B16: нет | C16: 25 | D16: Хлеб пшеничный | E16: 25 | F16: 20 | G16: Хлеб пшеничный | H16: 20 | I16: 20 | J16: Хлеб пшеничный | K16: 20 | L16: 20 | M16: Хлеб пшеничный | N16: 20 | O16: 20 | P16: Хлеб пшеничный | Q16: 40 | R16: 30
A17: Хлеб ржаной | B17: 20 | C17: 20 | D17: Хлеб ржаной | E17: нет | F17: 20 | G17: Хлеб ржаной | H17: 20 | I17: 20 | J17: Хлеб ржаной | K17: 20 | L17: 20 | M17: Хлеб ржаной | N17: 20 | O17: 20
A18: Итого: | B18: 665 | C18: 498 | D18: Итого: | E18: 590 | F18: 490 | G18: Итого: | H18: 545 | I18: 480 | J18: Итого: | K18: 555 | L18: 590 | M18: Итого: | N18: 545 | O18: 470 | P18: Итого: | Q18: 525 | R18: 480
A19: если с заменой | B19: 675 | P19: если с заменой | Q19: 600
A20: Белки,г | B20: 19.590 | C20: 18.700 | E20: 20.160 | F20: 23.480 | H20: 17.940 | I20: 15.870 | K20: 16.040 | L20: 16.470 | N20: 19.510 | O20: 17.820 | Q20: 19.580 | R20: 14.210 | S20: =B20+E20+H20+K20+N20+Q20 -> 112.82 | T20: 106.55
A21: Жиры,г | B21: 20.460 | C21: 16.750 | E21: 20.710 | F21: 12.840 | H21: 21.300 | I21: 8.820 | K21: 16.560 | L21: 14.440 | N21: 19.270 | O21: 11.830 | Q21: 19.240 | R21: 17.060 | S21: 117.54 | T21: 81.74
A22: Углеводы,г | B22: 87.900 | C22: 84.450 | E22: 80.680 | F22: 68.980 | H22: 94.250 | I22: 89.930 | K22: 63.860 | L22: 75.060 | N22: 81.300 | O22: 82.090 | Q22: 80.300 | R22: 54.020 | S22: 488.29 | T22: 454.53
A23: ЭЦ,ккал | B23: 616.310 | C23: 617.970 | E23: 601.080 | F23: 506.490 | H23: 631.660 | I23: 510.060 | K23: 456.830 | L23: 483.840 | N23: 569.520 | O23: 516.950 | Q23: 561.580 | R23: 389.990 | S23: 3436.98 | T23: 3025.30
A26: 2-ая неделя
A27: 1 день | D27: 2 день | G27: 3 день | J27: 4 день | M27: 5 день | P27: 6 день
A28: Наименование блюд | B28: Выход,г | D28: Наименование блюд | E28: Выход,г | G28: Наименование блюд | H28: Выход,г | J28: Наименование блюд | K28: Выход,г | M28: Наименование блюд | N28: Выход,г | P28: Наименование блюд | Q28: Выход,г
B29: 7-11 лет | C29: 12 лет и старше | E29: 7-11 лет | F29: 12 лет и старше | H29: 7-11 лет | I29: 12 лет и старше | K29: 7-11 лет | L29: 12 лет и старше | N29: 7-11 лет | O29: 12 лет и старше | Q29: 7-11 лет | R29: 12 лет и старше
A31: Плоды и ягоды свежие (апельсин) | B31: 100 | C31: нет | D31: Бутерброд с маслом сливочным и сыром | E31: 60 | F31: нет | G31: Салат из отварной свеклы | H31: 60 | I31: нет | J31: Плоды и ягоды свежие (апельсин) | K31: 100 | L31: нет | M31: Салат из свежей капусты с морковью | N31: 60 | O31: 100 | P31: Плоды и ягоды свежие (яблоки) | Q31: 100 | R31: нет
A32: Птица запеченная/сосиска отварная (ст.кл) | B32: 90 | C32: 100 | G32: Котлеты из мяса кур/Котлеты из мяса кур в томатном соусе | H32: 90 | I32: 60/40 | J32: Тефтели мясные в томатно-сметанном соусе | K32: 60/40 | L32: 60/40 | M32: Куриная грудка отварная | N32: нет | O32: 50 | P32: Биточки рыбные в сметанном сооусе | Q32: 80/20 | R32: 50/20
A33: Макаронные изделия отварные с маслом сливочным | B33: 150/3 | C33: 150/3 | D33: Овощи тушеные с мясом | E33: 50/150 | F33: 50/150 | G33: Пюре картофельное с маслом сливочным/Пюре картофельное (ст.кл) | H33: 150/5 | I33: 150 | J33: Макаронные изделия отварные с маслом сливочным/ Макаронные изделия отварные (ст.кл) | K33: 150/3 | L33: 150 | M33: Плов из говядины с рисом | N33: 50/150 | O33: нет | P33: Картофельное пюре | Q33: 150 | R33: 150
D34: замена на Котлета домашняя/ИЛИ сосиски отварные | E34: 90/100 | F34: нет/100 | M34: Рис отварной рассыпчатый | N34: нет | O34: 150
D35: по замене Каша Дружба"Молочная" | E35: 150/5 | F35: 220/5
A36: Чай с сахаром, с яблоком/Чай с сахаром,с яблоком | B36: 180/10/10 | C36: 180/10/ 10 | D36: Чай "Витаминный"/Чай с сахаром,с лимоном для старших | E36: 185/10/5 | F36: 185/10/5 | G36: Чай с сахаром | H36: 190/10 | I36: 190/10 | J36: Напиток из свежих фруктов 75С (сахара 10г)/Чай с сахаром,с яблоком | K36: 200 | L36: 180/10/10 | M36: Чай с сахаром, с яблоком/Чай с сахаром,с лимоном для старших | N36: 180/10/10 | O36: 185/10/5 | P36: Чай с сахаром | Q36: 190/10 | R36: 190/10
A38: Хлеб пшеничный | B38: 35 | C38: 20 | D38: Хлеб пшеничный | E38: 20 | F38: 20 | G38: Хлеб пшеничный | H38: 35 | I38: 20 | J38: Хлеб пшеничный | K38: 20 | L38: 20 | M38: Хлеб пшеничный | N38: 25 | O38: нет | P38: Хлеб пшеничный | Q38: 20 | R38: 20
A39: Хлеб ржаной | B39: 20 | C39: 20 | D39: Хлеб ржаной | E39: 40 | F39: 30 | G39: Хлеб ржаной | H39: 25 | I39: 20 | J39: Хлеб ржаной | K39: нет | L39: 20 | M39: Хлеб ржаной | N39: 20 | O39: 30 | P39: Хлеб ржаной | Q39: 20 | R39: 20
A40: Итого: | B40: 598 | C40: 468 | D40: Итого: | E40: 460 | F40: 450 | G40: Итого: | H40: 565 | I40: 490 | J40: Итого: | K40: 573 | L40: 490 | M40: Итого: | N40: 505 | O40: 530 | P40: Итого: | Q40: 590 | R40: 460
D41: если с заменой | E41: 575 | F41: 575
A42: Белки,г | B42: 20.200 | C42: 31.150 | E42: 20.210 | F42: 12.730 | H42: 20.200 | I42: 15.720 | K42: 15.040 | L42: 15.310 | N42: 20.150 | O42: 18.770 | Q42: 15.990 | R42: 12.350 | S42: =B42+E42+H42+K42+N42+Q42 -> 111.79 | T42: =C42+F42+I42+L42+O42+R42 -> 106.03
A43: Жиры,г | B43: 19.790 | C43: 7.810 | E43: 20.710 | F43: 10.820 | H43: 20.700 | I43: 21.640 | K43: 15.170 | L43: 13.230 | N43: 20.610 | O43: 18.280 | Q43: 15.930 | R43: 12.590 | S43: 112.91 | T43: 84.37
A44: Углеводы,г | B44: 79.590 | C44: 72.310 | E44: 87.870 | F44: 54.260 | H44: 81.110 | I44: 72.330 | K44: 69.520 | L44: 81.010 | N44: 80.990 | O44: 65.400 | Q44: 70.310 | R44: 67.140 | S44: 469.39 | T44: 412.45
A45: ЭЦ,ккал | B45: 602.000 | C45: 493.250 | E45: 616.850 | F45: 359.750 | H45: 595.680 | I45: 554.510 | K45: 458.690 | L45: 471.480 | N45: 595.530 | O45: 502.500 | Q45: 465.620 | R45: 415.910 | S45: 3334.37 | T45: 2797.40
P46: ЭЦ на 1 учащегося,ккал за 12дней | S46: =S23+S45 -> 6771.35 | T46: =T23+T45 -> 5822.70
P47: ЭЦ на 1 учащегося,ккал в среднем за день | S47: =S46/12 -> 564.28 | T47: =T46/12 -> 485.23
P48: Распределение по приему пищи,% | S48: 25% | T48: 20-25%
